bitfinex/quotes_BTCUSD_20240730
["timestamp","ask_amount","ask_price","bid_price","bid_amount"]
[1722360113708,0.00798906,66069.0,66068.0,1.57021573]
[1722360114111,0.00798906,66069.0,66068.0,1.87293373]
[1722360114859,0.00798906,66069.0,66068.0,1.94093373]
[1722360115035,0.00798906,66069.0,66068.0,1.93093373]
[1722360115238,0.009383,66077.0,66073.0,1.362127]
[1722360115443,0.009383,66077.0,66073.0,2.21975969]
[1722360115642,0.009383,66077.0,66073.0,2.3319611]
[1722360115847,0.009383,66077.0,66073.0,2.6346561]
[1722360116223,0.009383,66077.0,66073.0,2.59487754]
[1722360116579,0.009383,66077.0,66073.0,2.3319611]
[1722360116759,0.009383,66077.0,66073.0,2.32257254]
[1722360117157,0.009383,66077.0,66073.0,2.27594577]
[1722360117336,0.009383,66077.0,66073.0,2.24555577]
[1722360117532,0.009383,66077.0,66073.0,2.54825077]
[1722360118526,0.009383,66077.0,66073.0,2.24555577]
[1722360118741,0.009383,66077.0,66073.0,2.38532684]
[1722360118949,0.009383,66077.0,66073.0,2.42491699]
[1722360119174,0.009383,66077.0,66073.0,1.79625876]
[1722360119349,0.009383,66077.0,66073.0,1.52866077]
[1722360120106,0.009383,66077.0,66073.0,1.51466077]
[1722360121903,0.009383,66077.0,66073.0,2.12255577]
[1722360122083,0.009383,66077.0,66073.0,2.15955577]
[1722360122280,0.009383,66077.0,66073.0,2.14555577]
[1722360122510,0.009383,66077.0,66073.0,2.47864077]
[1722360122715,1.7e-07,66074.0,66073.0,2.59264077]
[1722360122925,0.00939401,66086.0,66085.0,1.53488]
[1722360123108,0.00939401,66086.0,66085.0,1.98171304]
[1722360123310,0.00939401,66086.0,66085.0,2.03844563]
[1722360123628,0.009383,66095.0,66087.0,1.371839]
[1722360123841,0.009383,66095.0,66094.0,1.059096]
[1722360124039,0.009383,66095.0,66094.0,1.20972904]
[1722360124230,0.1,66111.0,66096.0,1.059065]
[1722360124437,0.1,66111.0,66096.0,1.5839556]
[1722360124647,0.1,66111.0,66096.0,1.73510059]
[1722360125024,0.1,66111.0,66096.0,2.21879059]
[1722360125224,0.1,66111.0,66096.0,2.25042206]
[1722360125586,0.1,66111.0,66110.0,0.897915]
[1722360125782,0.1,66111.0,66110.0,0.151263]
[1722360125983,0.1,66111.0,66110.0,0.46624577]
[1722360126156,0.1,66111.0,66110.0,0.94240481]
[1722360126359,0.1,66111.0,66110.0,1.33636092]
[1722360126531,0.1,66111.0,66110.0,0.71531197]
[1722360126735,0.1,66111.0,66110.0,0.67049938]
[1722360126943,0.1,66111.0,66110.0,0.67549938]
[1722360127519,0.1,66111.0,66110.0,0.62888186]
[1722360127723,0.1,66111.0,66110.0,0.49424577]
[1722360128361,0.1,66111.0,66110.0,0.48924577]
[1722360128582,0.998002,66111.0,66110.0,0.01245677]
[1722360128991,0.151272,66106.0,66095.0,0.0642]
[1722360129192,0.151272,66106.0,66101.0,0.151283]
[1722360129453,0.151272,66106.0,66096.0,0.15063304]
[1722360129454,0.151286,66100.0,66096.0,0.01256822]
[1722360129604,0.07534716,66108.0,66102.0,0.01252045]
[1722360129605,0.151279,66103.0,66102.0,0.01252045]
[1722360129809,0.2417,66111.0,66094.0,0.01]
[1722360130074,0.1,66111.0,66110.0,0.151263]
[1722360130287,0.1,66111.0,66110.0,0.4689153]
[1722360130477,0.1,66111.0,66110.0,1.23705711]
[1722360130862,0.1,66111.0,66110.0,1.26005711]
[1722360131262,0.1,66111.0,66110.0,1.59258311]
[1722360131638,0.0148568,66127.0,66110.0,1.59258311]
[1722360131639,0.0148568,66127.0,66119.0,1.068694]
[1722360131897,0.0148568,66127.0,66119.0,1.23232704]
[1722360132110,0.0148568,66127.0,66119.0,0.98565905]
[1722360132714,0.1660818,66127.0,66119.0,0.98565905]
[1722360132917,0.151231,66124.0,66119.0,0.23005801]
[1722360133121,0.07534716,66126.0,66119.0,0.28573813]
[1722360133339,0.160623,66120.0,66119.0,0.01238515]
[1722360133542,0.160623,66120.0,66107.0,0.04343086]
[1722360133543,0.151249,66116.0,66107.0,0.04343086]
[1722360133746,0.765583,66120.0,66119.0,0.005]
[1722360133948,0.151263,66110.0,66107.0,0.05693585]
[1722360134237,0.142,66115.0,66107.0,0.151269]
[1722360134238,0.151256,66113.0,66107.0,0.151269]
[1722360134420,0.151259,66112.0,66107.0,0.0453811]
[1722360134668,0.302516,66113.0,66108.0,0.01247268]
[1722360134871,0.302532,66109.0,66101.0,0.01437]
[1722360135072,0.151275,66105.0,66102.0,0.0316942]
[1722360135279,0.151275,66105.0,66092.0,0.04457827]
[1722360135280,0.07534716,66106.0,66091.0,0.04457827]
[1722360135493,0.07534716,66106.0,66095.0,0.151296]
[1722360135702,0.0789,66105.0,66086.0,0.04457827]
[1722360135917,0.151302,66093.0,66088.0,0.151312]
[1722360136123,0.151302,66093.0,66082.0,0.30265]
[1722360136124,0.151308,66090.0,66089.0,0.0604581]
[1722360136332,0.151306,66091.0,66080.0,0.21126704]
[1722360136536,0.21083304,66104.0,66081.0,0.01736587]
[1722360136741,0.302614,66091.0,66083.0,0.151324]
[1722360136969,0.302614,66091.0,66078.0,0.0613]
[1722360136970,0.151307,66091.0,66078.0,0.0613]
[1722360137177,0.151302,66093.0,66079.0,0.00302611]
[1722360137395,0.151302,66093.0,66089.0,0.15131]
[1722360137523,0.21083304,66104.0,66080.0,0.302662]
[1722360137524,0.07534716,66099.0,66080.0,0.302662]
[1722360137725,0.302604,66093.0,66081.0,0.01571376]
[1722360137969,0.302596,66095.0,66085.0,0.302637]
[1722360138208,0.0602,66104.0,66086.0,0.01567367]
[1722360138417,0.151302,66093.0,66088.0,0.151312]
[1722360138640,0.151302,66093.0,66086.0,0.01567367]
[1722360138641,0.15129,66098.0,66093.0,0.1513]
[1722360138843,0.15129,66098.0,66089.0,0.00302587]
[1722360138844,0.151289,66099.0,66094.0,0.151299]
[1722360139049,0.151295,66096.0,66095.0,0.0453909]
[1722360139251,0.453885,66096.0,66095.0,0.01257618]
[1722360139716,0.07534716,66098.0,66084.0,0.04464871]
[1722360139907,0.453885,66096.0,66095.0,0.01257618]
[1722360140104,0.151336,66078.0,66075.0,0.04464871]
[1722360140316,0.302603,66094.0,66077.0,0.02730128]
[1722360140519,0.45323604,66094.0,66077.0,0.04002082]
[1722360140728,0.302633,66087.0,66077.0,0.05836257]
[1722360140966,0.302618,66090.0,66078.0,0.04775643]
[1722360141147,0.0765,66095.0,66080.0,0.04473003]
[1722360141148,0.15063304,66093.0,66080.0,0.04473003]
[1722360141356,0.45323704,66093.0,66083.0,0.04473003]
[1722360141556,0.45323704,66093.0,66084.0,0.01266378]
[1722360141557,0.15063304,66093.0,66084.0,0.01266378]
[1722360141763,0.302632,66087.0,66085.0,0.04473003]
[1722360141972,0.0765,66095.0,66085.0,0.04473003]
[1722360141973,0.151299,66094.0,66089.0,0.151309]
[1722360142183,0.227797,66095.0,66090.0,0.04473003]
[1722360142451,0.4782,66096.0,66094.0,0.151299]
[1722360142704,0.302572,66100.0,66094.0,0.04473003]
[1722360142705,0.302576,66099.0,66094.0,0.04473003]
[1722360142934,0.302572,66100.0,66096.0,0.04479686]
[1722360142935,0.151285,66100.0,66096.0,0.04479686]
[1722360143135,0.0828,66101.0,66095.0,0.20866904]
[1722360143136,0.385369,66101.0,66095.0,0.20866904]
[1722360143342,0.385369,66101.0,66094.0,0.13352899]
[1722360143343,0.0828,66101.0,66098.0,0.04479686]
[1722360143551,0.0755,66107.0,66099.0,0.10200439]
[1722360143756,0.302553,66104.0,66102.0,0.04483247]
[1722360143972,0.0755,66107.0,66103.0,0.05734495]
[1722360144183,0.0755,66107.0,66103.0,0.01251248]
[1722360144184,0.151276,66104.0,66103.0,0.01251248]
[1722360144418,0.756382,66104.0,66103.0,0.01251248]
[1722360144597,1.058935,66104.0,66103.0,0.01251248]
[1722360144833,1.20956804,66104.0,66103.0,0.01251248]
[1722360145250,0.453864,66099.0,66098.0,0.0448672]
[1722360145457,0.453864,66099.0,66098.0,0.06729826]
[1722360145670,0.75644,66099.0,66098.0,0.07985055]
[1722360146092,0.756452,66098.0,66097.0,0.08946006]
[1722360146490,0.756452,66098.0,66097.0,0.11182507]
[1722360146981,1.27266604,66098.0,66097.0,0.11182507]
[1722360147192,0.41779964,66098.0,66077.0,0.152251]
[1722360147399,0.41779964,66098.0,66095.0,0.06740026]
[1722360147400,0.453885,66096.0,66095.0,0.06740026]
[1722360147603,1.20969804,66096.0,66095.0,0.06740026]
[1722360147810,0.756485,66095.0,66094.0,0.06740026]
[1722360148009,0.756485,66095.0,66092.0,0.08986702]
[1722360148010,0.151301,66093.0,66092.0,0.06740026]
[1722360148137,0.90714004,66093.0,66092.0,0.06740026]
[1722360148345,1.20974304,66093.0,66092.0,0.08986702]
[1722360149410,0.453912,66092.0,66091.0,0.06750488]
[1722360149571,0.151306,66091.0,66087.0,0.28611453]
[1722360149751,0.151306,66091.0,66088.0,0.13480053]
[1722360149952,0.453925,66090.0,66089.0,0.19367588]
[1722360150334,0.453925,66090.0,66089.0,0.13480053]
[1722360150458,0.151312,66089.0,66084.0,0.151322]
[1722360150657,0.151312,66089.0,66084.0,0.09562871]
[1722360150658,0.151316,66087.0,66084.0,0.09562871]
[1722360150886,0.151316,66087.0,66086.0,0.13523636]
[1722360150887,0.453946,66087.0,66086.0,0.13523636]
[1722360151087,0.7566,66085.0,66084.0,0.13523636]
[1722360151398,0.453939,66088.0,66087.0,0.003]
[1722360151598,1.04439804,66088.0,66087.0,0.003]
[1722360151814,1.34702404,66088.0,66087.0,0.09324552]
[1722360152560,1.34702404,66088.0,66087.0,0.003]
[1722360152764,1.059208,66087.0,66086.0,0.06772674]
[1722360152970,0.756587,66086.0,66085.0,0.09024552]
[1722360153272,0.0625,66094.0,66085.0,0.11280624]
[1722360153454,0.30262,66090.0,66086.0,0.01128062]
[1722360153654,0.151313,66088.0,66087.0,0.001]
[1722360153810,0.151313,66088.0,66086.0,0.01128062]
[1722360154011,0.453939,66088.0,66087.0,0.0449429]
[1722360154236,0.453939,66088.0,66082.0,0.13550235]
[1722360154237,0.151324,66083.0,66082.0,0.13550235]
[1722360154438,0.453987,66081.0,66080.0,0.13550235]
[1722360154640,0.453987,66081.0,66080.0,0.09037685]
[1722360154839,0.453994,66080.0,66079.0,0.09037638]
[1722360155036,0.151334,66079.0,66078.0,0.11297106]
[1722360155240,0.454002,66079.0,66078.0,0.11297106]
[1722360155446,0.454002,66079.0,66077.0,0.000913]
[1722360155447,0.454008,66078.0,66077.0,0.000913]
[1722360155649,0.151336,66078.0,66077.0,0.000913]
[1722360156170,0.454008,66078.0,66077.0,0.06870755]
[1722360156416,1.059352,66078.0,66077.0,0.000913]
[1722360156578,1.121552,66078.0,66077.0,0.007913]
[1722360157851,0.81888,66078.0,66077.0,0.000913]
[1722360158023,0.75668,66078.0,66077.0,0.000913]
[1722360159006,1.059352,66078.0,66077.0,0.000913]
[1722360159451,1.060352,66078.0,66077.0,0.000913]
[1722360159626,1.20998504,66078.0,66077.0,0.000913]
[1722360159845,1.34628354,66078.0,66077.0,0.000913]
[1722360160059,1.21398504,66078.0,66077.0,0.000913]
[1722360160264,1.20998504,66078.0,66077.0,0.000913]
[1722360160649,1.21098504,66078.0,66077.0,0.000913]
[1722360160992,0.454008,66078.0,66077.0,0.000913]
[1722360161406,0.76168,66078.0,66077.0,0.001913]
[1722360161623,0.156336,66078.0,66077.0,0.001913]
[1722360161838,0.005,66078.0,66077.0,0.001913]
[1722360162105,0.005,66078.0,66077.0,0.7951852]
[1722360162305,0.005,66078.0,66077.0,0.77161954]
[1722360162445,0.005,66078.0,66077.0,0.46894254]
[1722360162846,0.005,66078.0,66077.0,0.77161954]
[1722360163093,0.302633,66087.0,66081.0,0.151328]
[1722360163310,0.151325,66083.0,66079.0,0.151333]
[1722360163543,0.151325,66083.0,66078.0,0.41622185]
[1722360163544,0.151319,66086.0,66080.0,0.302662]
[1722360163740,0.302637,66086.0,66081.0,0.08636382]
[1722360163960,0.302637,66086.0,66081.0,0.01298268]
[1722360164163,0.454008,66078.0,66077.0,0.000913]
[1722360165300,0.302661,66081.0,66077.0,0.000913]
[1722360165515,0.45327304,66086.0,66077.0,0.000913]
[1722360165516,0.15063304,66086.0,66078.0,0.16434158]
[1722360165722,0.151327,66082.0,66078.0,0.01300658]
[1722360165928,0.30265,66083.0,66078.0,0.01300658]
[1722360166129,0.15132,66085.0,66081.0,0.151328]
[1722360166332,0.15132,66085.0,66082.0,0.01297471]
[1722360166556,0.001,66086.0,66082.0,0.01297471]
[1722360166557,0.151318,66086.0,66082.0,0.16430071]
[1722360166789,0.151309,66090.0,66086.0,0.151317]
[1722360166988,0.151316,66087.0,66083.0,0.03156367]
[1722360167215,0.151313,66088.0,66084.0,0.17121098]
[1722360167415,0.151313,66088.0,66084.0,0.01988898]
[1722360167716,0.03,66109.0,66085.0,0.0776523]
[1722360167922,0.02369802,66090.0,66089.0,0.151311]
[1722360168122,0.152137,66091.0,66087.0,0.151315]
[1722360168348,0.00018606,66091.0,66088.0,0.0519349]
[1722360168762,0.151309,66090.0,66088.0,0.0519349]
[1722360168990,0.453925,66090.0,66089.0,0.05712949]
[1722360169541,0.302628,66088.0,66084.0,0.0654]
[1722360169783,0.02369656,66087.0,66078.0,0.0626]
[1722360169989,0.151324,66083.0,66078.0,0.0626]
[1722360170172,0.15063304,66088.0,66078.0,0.0626]
[1722360170173,0.151328,66082.0,66079.0,0.0366193]
[1722360170378,0.151327,66082.0,66079.0,0.0366193]
[1722360170841,0.302638,66086.0,66079.0,0.0366193]
[1722360171047,0.151325,66083.0,66079.0,0.1879523]
[1722360171262,0.453987,66081.0,66080.0,0.08568163]
[1722360171442,0.151336,66078.0,66077.0,0.000913]
[1722360171737,0.151331,66080.0,66077.0,0.000913]
[1722360171939,0.151334,66079.0,66077.0,0.000913]
[1722360172143,0.454008,66078.0,66077.0,0.000913]
[1722360172963,0.47770877,66078.0,66077.0,0.000913]
[1722360173168,0.151332,66080.0,66077.0,0.000913]
[1722360173368,0.17503441,66079.0,66078.0,0.01300658]
[1722360173572,0.151336,66078.0,66077.0,0.000913]
[1722360173871,0.151336,66078.0,66077.0,0.01392754]
[1722360174075,0.151336,66078.0,66077.0,0.008913]
[1722360174289,0.302651,66083.0,66077.0,0.0536688]
[1722360174520,0.02370022,66082.0,66077.0,0.36936034]
[1722360174729,0.001,66079.0,66078.0,0.34293714]
[1722360174866,0.001,66079.0,66078.0,0.79694514]
[1722360175070,0.001,66079.0,66078.0,0.80995172]
[1722360176359,0.802621,66090.0,66078.0,0.80995172]
[1722360176360,0.302624,66089.0,66080.0,0.302663]
[1722360176560,0.302624,66089.0,66077.0,0.0536688]
[1722360176561,0.02369817,66088.0,66084.0,0.15132]
[1722360176801,0.02369817,66088.0,66085.0,0.16427082]
[1722360177009,0.02369817,66088.0,66085.0,0.01295082]
[1722360177321,0.02369817,66088.0,66087.0,0.151315]
[1722360177549,0.02369817,66088.0,66085.0,0.01295082]
[1722360177756,0.02369817,66087.0,66084.0,0.151322]
[1722360177891,0.02369817,66087.0,66085.0,0.0151322]
[1722360178091,0.02369817,66087.0,66085.0,0.1664512]
[1722360178378,0.02369817,66087.0,66086.0,0.151317]
[1722360178530,0.02369817,66087.0,66085.0,0.0151322]
[1722360178734,0.02369817,66087.0,66084.0,0.151322]
[1722360178951,0.02369817,66087.0,66086.0,0.151317]
[1722360179111,0.02369817,66087.0,66086.0,0.0151317]
[1722360179851,0.02369817,66087.0,66077.0,0.000913]
[1722360180185,0.151332,66080.0,66077.0,0.000913]
[1722360180486,0.02369817,66079.0,66077.0,0.000913]
[1722360180686,0.07534716,66081.0,66077.0,0.000913]
[1722360180687,0.47770617,66078.0,66077.0,0.000913]
[1722360180861,0.78037817,66078.0,66077.0,0.000913]
[1722360181040,0.47770617,66078.0,66077.0,0.000913]
[1722360181242,0.17503417,66078.0,66077.0,0.000913]
[1722360181846,0.02369817,66078.0,66077.0,0.000913]
[1722360182051,0.151318,66086.0,66077.0,0.0225982]
[1722360182284,0.00018606,66091.0,66084.0,0.151322]
[1722360182285,0.02369888,66085.0,66084.0,0.151322]
[1722360182672,0.5,66090.0,66085.0,0.302639]
[1722360182838,0.02369793,66089.0,66088.0,0.151313]
[1722360183065,0.02369793,66089.0,66088.0,0.453939]
[1722360183185,0.02369793,66089.0,66088.0,0.16423992]
[1722360184116,0.02369793,66089.0,66088.0,0.46686592]
[1722360184316,0.02369793,66089.0,66088.0,0.85298151]
[1722360184770,0.02869793,66089.0,66088.0,0.85298151]
[1722360184968,0.005,66089.0,66088.0,0.85298151]
[1722360185921,0.005,66089.0,66088.0,0.55035551]
[1722360186193,0.02869543,66089.0,66088.0,0.55035551]
[1722360186974,0.02869543,66089.0,66088.0,0.01292692]
[1722360187236,0.02869543,66089.0,66086.0,0.151317]
[1722360187466,0.02369543,66088.0,66086.0,0.151317]
[1722360188083,0.02369543,66088.0,66085.0,0.30264]
[1722360188527,0.02369543,66088.0,66073.0,0.0606]
[1722360188528,0.302636,66086.0,66073.0,0.0606]
[1722360188712,0.151328,66082.0,66074.0,0.30269]
[1722360188910,0.151328,66082.0,66073.0,0.0606]
[1722360188911,0.02369543,66081.0,66078.0,0.0838903]
[1722360189135,0.02369543,66081.0,66080.0,0.453994]
[1722360189340,0.0761,66094.0,66080.0,0.151331]
[1722360189341,0.151323,66084.0,66080.0,0.151331]
[1722360189544,0.02369818,66083.0,66081.0,0.23547623]
[1722360189688,0.02369818,66083.0,66081.0,0.08414723]
[1722360190047,0.151322,66084.0,66081.0,0.08414723]
[1722360190298,0.302636,66086.0,66082.0,0.07742885]
[1722360190508,0.151324,66083.0,66079.0,0.151332]
[1722360190718,0.151329,66081.0,66080.0,0.13161853]
[1722360190943,0.454008,66078.0,66075.0,0.4747]
[1722360191160,0.78037847,66078.0,66075.0,0.4747]
[1722360191593,0.78037847,66078.0,66068.0,0.368317]
[1722360192021,0.78037847,66078.0,66068.0,0.0656]
[1722360192022,0.47770647,66078.0,66068.0,0.0656]
[1722360192237,0.47770647,66078.0,66072.0,0.151349]
[1722360192462,0.47770647,66078.0,66073.0,0.151347]
[1722360192898,0.47770647,66078.0,66070.0,0.302708]
[1722360192899,0.47770647,66078.0,66072.0,0.151349]
[1722360193100,0.78037847,66078.0,66068.0,0.0656]
[1722360193301,0.78037847,66078.0,66068.0,0.216958]
[1722360193540,0.78037847,66078.0,66069.0,0.151356]
[1722360193754,0.78537847,66078.0,66069.0,0.151356]
[1722360193925,1.08305047,66078.0,66068.0,0.0656]
[1722360194098,1.08305047,66078.0,66067.0,0.302721]
[1722360194342,1.08605047,66078.0,66069.0,0.151356]
[1722360194513,1.08605047,66078.0,66064.0,0.0894229]
[1722360194514,1.35977856,66078.0,66064.0,0.0801]
[1722360194691,1.54763275,66078.0,66057.0,0.0649]
[1722360194912,1.55163275,66078.0,66057.0,0.367664]
[1722360195168,1.55163275,66078.0,66059.0,0.151379]
[1722360195406,1.55163275,66078.0,66057.0,0.0649]
[1722360195774,2.18574387,66078.0,66051.0,0.0606]
[1722360196029,2.18574266,66078.0,66051.0,0.0606]
[1722360196245,2.18574266,66078.0,66052.0,0.151395]
[1722360196453,2.81900898,66078.0,66045.0,0.151411]
[1722360196680,2.81900898,66078.0,66045.0,0.302822]
[1722360196907,2.81200898,66078.0,66047.0,0.151406]
[1722360197127,2.66831466,66078.0,66077.0,0.001913]
[1722360197771,2.67743873,66078.0,66077.0,0.001913]
[1722360198003,2.67043873,66078.0,66077.0,0.000913]
[1722360198221,2.18786673,66078.0,66077.0,0.000913]
[1722360198433,2.18486673,66078.0,66077.0,0.001913]
[1722360198656,2.18786673,66078.0,66077.0,0.000913]
[1722360198864,2.12649019,66078.0,66077.0,0.000913]
[1722360199128,2.12715282,66078.0,66077.0,0.000913]
[1722360199339,2.76041914,66078.0,66077.0,0.000913]
[1722360199510,2.82233158,66078.0,66077.0,0.000913]
[1722360199915,2.82233158,66078.0,66077.0,0.001913]
[1722360199916,2.82933158,66078.0,66077.0,0.001913]
[1722360200066,2.82933158,66078.0,66077.0,0.000913]
[1722360200476,2.83633158,66078.0,66077.0,0.001913]
[1722360200670,2.82933158,66078.0,66077.0,0.000913]
[1722360201055,2.83633158,66078.0,66077.0,0.001913]
[1722360201537,2.85933158,66078.0,66077.0,0.001913]
[1722360202152,2.85933158,66078.0,66044.0,0.0606]
[1722360202153,0.757057,66045.0,66044.0,0.0606]
[1722360202536,0.454234,66045.0,66044.0,0.0606]
[1722360202743,0.4782,66059.0,66044.0,0.0606]
[1722360202920,0.27434419,66058.0,66044.0,0.0606]
[1722360203124,0.151411,66045.0,66044.0,0.0606]
[1722360203672,0.757057,66045.0,66044.0,0.07169234]
[1722360204099,0.757057,66045.0,66044.0,0.0616]
[1722360204308,0.55340104,66058.0,66044.0,0.07169234]
[1722360204309,0.151411,66046.0,66044.0,0.07169234]
[1722360204479,0.151411,66046.0,66045.0,0.04553383]
[1722360204634,0.151411,66046.0,66044.0,0.07869234]
[1722360204838,0.454234,66045.0,66044.0,0.0676]
[1722360205437,0.757057,66045.0,66044.0,0.0676]
[1722360205863,0.454234,66045.0,66044.0,0.0676]
[1722360206070,0.90769004,66045.0,66044.0,0.007]
[1722360206270,0.151439,66033.0,66032.0,0.0654]
[1722360206473,0.151437,66034.0,66032.0,0.0654]
[1722360206673,0.151439,66033.0,66032.0,0.0654]
[1722360206875,0.454317,66033.0,66032.0,0.0654]
[1722360207828,0.151439,66033.0,66032.0,0.0654]
[1722360208030,0.302864,66037.0,66032.0,0.0654]
[1722360208265,0.001,66033.0,66032.0,0.527723]
[1722360208779,0.001,66033.0,66032.0,0.830606]
[1722360209392,0.302843,66041.0,66034.0,0.151436]
[1722360209616,0.302843,66041.0,66035.0,0.151433]
[1722360209820,0.0762,66048.0,66032.0,0.0714]
[1722360210029,0.30285,66040.0,66032.0,0.1118555]
[1722360210238,0.30285,66040.0,66033.0,0.302878]
[1722360210444,0.30285,66040.0,66032.0,0.1208555]
[1722360210445,0.2259802,66047.0,66036.0,0.151431]
[1722360210652,0.15063304,66047.0,66035.0,0.302865]
[1722360210847,0.151432,66037.0,66034.0,0.08168915]
[1722360211067,0.151431,66037.0,66032.0,0.0654]
[1722360211283,0.151428,66038.0,66034.0,0.151436]
[1722360211692,0.15143,66037.0,66033.0,0.0771449]
[1722360211908,0.151423,66040.0,66033.0,0.001]
[1722360212117,0.151425,66040.0,66033.0,0.001]
[1722360212313,0.151425,66040.0,66035.0,0.302869]
[1722360212522,0.15063304,66043.0,66036.0,0.302862]
[1722360212724,0.302847,66040.0,66036.0,0.01169348]
[1722360213208,0.302847,66040.0,66032.0,0.368279]
[1722360213209,0.004,66037.0,66032.0,0.0654]
[1722360213462,0.454317,66033.0,66032.0,0.0654]
[1722360213668,0.302871,66035.0,66032.0,0.0654]
[1722360213902,0.151435,66035.0,66032.0,0.0654]
[1722360214280,0.002,66040.0,66032.0,0.368282]
[1722360214489,0.151426,66039.0,66035.0,0.151434]
[1722360214690,0.151428,66038.0,66034.0,0.151436]
[1722360214916,0.302825,66045.0,66032.0,0.368282]
[1722360214917,0.151414,66044.0,66035.0,0.09431532]
[1722360215030,0.1,66053.0,66038.0,0.151427]
[1722360215262,0.302816,66047.0,66035.0,0.302869]
[1722360215469,0.302841,66042.0,66036.0,0.19884082]
[1722360215662,0.151423,66040.0,66036.0,0.19884082]
[1722360215872,0.151423,66040.0,66036.0,0.151432]
[1722360216121,0.302834,66043.0,66032.0,0.0654]
[1722360216320,0.302854,66039.0,66032.0,0.36828]
[1722360216495,0.151431,66037.0,66035.0,0.001]
[1722360216876,0.151431,66037.0,66033.0,0.151438]
[1722360217096,0.15063304,66046.0,66031.0,0.009372]
[1722360217097,0.151441,66032.0,66031.0,0.009372]
[1722360217267,0.151439,66033.0,66031.0,0.009372]
[1722360217443,0.302868,66036.0,66031.0,0.160814]
[1722360217444,0.151436,66035.0,66031.0,0.160814]
[1722360217670,0.302844,66041.0,66033.0,0.151439]
[1722360217671,0.151431,66037.0,66033.0,0.151439]
[1722360217852,0.10249802,66046.0,66031.0,0.009372]
[1722360217853,0.151438,66034.0,66031.0,0.009372]
[1722360218017,0.151433,66036.0,66032.0,0.151441]
[1722360218209,0.302865,66036.0,66031.0,0.160815]
[1722360218414,0.15063304,66040.0,66031.0,0.160815]
[1722360218415,0.0799,66046.0,66031.0,0.01240071]
[1722360218656,0.14679168,66054.0,66036.0,0.15143]
[1722360218657,0.30283,66044.0,66036.0,0.15143]
[1722360218831,0.151423,66040.0,66036.0,0.15143]
[1722360219260,0.151425,66039.0,66035.0,0.151434]
[1722360219457,0.302845,66041.0,66036.0,0.2129433]
[1722360219458,0.151424,66040.0,66036.0,0.2129433]
[1722360219712,0.151431,66037.0,66033.0,0.151438]
[1722360219971,0.15063304,66045.0,66031.0,0.009372]
[1722360219972,0.302851,66039.0,66031.0,0.009372]
[1722360220112,0.15143,66037.0,66033.0,0.151439]
[1722360220315,0.151428,66038.0,66035.0,0.002]
[1722360220530,0.30284,66042.0,66035.0,0.002]
[1722360220762,0.151419,66042.0,66037.0,0.151429]
[1722360220979,0.151425,66039.0,66038.0,0.05006654]
[1722360221468,0.302833,66043.0,66038.0,0.05006654]
[1722360221668,0.38809816,66061.0,66040.0,0.151421]
[1722360221669,0.00934452,66054.0,66040.0,0.151421]
[1722360221873,0.0639,66058.0,66039.0,0.294225]
[1722360221874,0.151416,66044.0,66039.0,0.294225]
[1722360222108,0.25063304,66052.0,66039.0,0.0611]
[1722360222271,0.30284,66042.0,66039.0,0.0611]
[1722360222743,0.151421,66041.0,66039.0,0.0611]
[1722360223145,0.151421,66041.0,66039.0,0.0621]
[1722360223539,0.30284,66042.0,66035.0,0.151434]
[1722360223768,0.151428,66038.0,66035.0,0.151434]
[1722360223974,0.151428,66038.0,66035.0,0.0909877]
[1722360224116,0.151434,66035.0,66034.0,0.0607]
[1722360224319,0.454317,66033.0,66032.0,0.000913]
[1722360224520,1.060073,66033.0,66032.0,0.000913]
[1722360224743,0.757195,66033.0,66032.0,0.000913]
[1722360225326,1.060073,66033.0,66032.0,0.000913]
[1722360225526,0.757195,66033.0,66032.0,0.000913]
[1722360225933,0.454317,66033.0,66032.0,0.000913]
[1722360226333,0.757195,66033.0,66032.0,0.01281506]
[1722360226546,0.758195,66033.0,66032.0,0.02181506]
[1722360226742,0.758195,66033.0,66032.0,0.009913]
[1722360226967,0.757195,66033.0,66032.0,0.000913]
[1722360228105,0.757195,66033.0,66032.0,0.002913]
[1722360228506,0.757195,66033.0,66032.0,0.000913]
[1722360228757,0.454317,66033.0,66032.0,0.000913]
[1722360229106,0.454317,66033.0,66032.0,0.0129618]
[1722360229369,0.151439,66033.0,66032.0,0.0129618]
[1722360229883,0.454317,66033.0,66032.0,0.0149618]
[1722360230331,0.757195,66033.0,66032.0,0.0149618]
[1722360230742,0.757195,66033.0,66023.0,0.009372]
[1722360230743,0.01,66024.0,66023.0,0.009372]
[1722360230954,0.01,66024.0,66006.0,0.03925417]
[1722360230955,0.467783,66014.0,66006.0,0.03925417]
[1722360231148,0.467783,66014.0,65987.0,0.0623]
[1722360231149,1.26710158,66014.0,65987.0,0.0623]
[1722360231297,2.80527409,66014.0,65987.0,0.0623]
[1722360231496,0.795858,66011.0,65981.0,0.00853]
[1722360231696,0.454668,65982.0,65981.0,0.00853]
[1722360232790,0.002,65982.0,65981.0,0.00853]
[1722360232969,0.002,65982.0,65981.0,0.463205]
[1722360233168,0.1,66001.0,65981.0,0.00853]
[1722360233169,0.303065,65993.0,65981.0,0.00853]
[1722360233368,0.151534,65992.0,65985.0,0.151548]
[1722360233699,0.303053,65995.0,65982.0,0.31416001]
[1722360233869,0.15063304,65995.0,65983.0,0.341603]
[1722360234075,0.151538,65990.0,65983.0,0.038499]
[1722360234281,0.151538,65990.0,65984.0,0.151551]
[1722360234476,0.15154,65989.0,65985.0,0.05720092]
[1722360234690,0.44444115,66010.0,65985.0,0.05720092]
[1722360234885,0.15063304,66002.0,65985.0,0.06023173]
[1722360235225,0.15063304,66002.0,65986.0,0.303093]
[1722360235226,0.008,65995.0,65986.0,0.303093]
[1722360235432,0.303057,65994.0,65984.0,0.3031]
[1722360235584,0.151536,65991.0,65986.0,0.151546]
[1722360235786,0.002,65989.0,65987.0,0.151544]
[1722360236037,0.002,65989.0,65988.0,0.20386701]
[1722360236619,0.002,65989.0,65988.0,0.05232501]